{"text_format":"3","workbook":"xlsx","n_sheets":2,"sheets":["Început","Factură de servicii"],"not_rendered":{"images":1,"defined_names":1},"read":"whole","date_system":"1900"}

{"sheet":"Început","index":0,"n_rows":8,"n_cols":2,"rows_kept":8}
[null,"DESPRE ACEST ȘABLON"]
[null,"Utilizați acest șablon pentru a crea o Factură de servicii."]
[null,"Completați Numărul facturii, Data, Numele firmei, Adresa, Sloganul și detalii privind Facturarea către."]
[null,"Introduceți informațiile în tabele."]
[null,"Totalul se calculează automat pentru dvs."]
[null,"Notă: "]
[null,"Găsiți instrucțiuni suplimentare în coloana A din foaia de lucru FACTURĂ DE SERVICII. Acest text a fost ascuns intenționat. Pentru a elimina textul, selectați coloana A, apoi DELETE. Pentru a reafișa textul, selectați coloana A, apoi schimbați culoarea de font."]
[null,"Pentru a afla mai multe despre tabele, apăsați SHIFT, apoi F10 într-un tabel, selectați opțiunea TABEL, apoi selectați TEXT ALTERNATIV."]

{"sheet":"Factură de servicii","index":1,"n_rows":44,"n_cols":5,"rows_kept":44,"merged":[[0,1,0,2],[0,3,0,4],[2,1,2,3],[3,1,3,3],[4,1,4,2],[5,1,5,2],[6,1,6,2],[7,1,7,2],[41,1,41,2],[41,3,41,4],[43,1,43,4]]}
[null,"Substituentul siglei se află în această celulă.",null,"FACTURĂ"]
[]
[null,"Numele firmei dvs."]
[null,"Sloganul firmei dvs."]
[null,"Adresă poștală",null,"NR. FACTURĂ:","Nr."]
[null,"Localitate, județ, cod poștal",null,"DATA ",{"$f":"TODAY()","v":"2022-05-05"}]
[null,"Numărul de telefon și de fax",null,"ID CLIENT ","ID"]
[null,"E-mail"]
[null,"CĂTRE","Nume"]
[null,null,"Numele firmei"]
[null,null,"Adresă poștală"]
[null,null,"Localitate, județ, cod poștal"]
[null,null,"Telefon"]
[null,"VÂNZĂTOR","ACTIVITATE","CONDIȚII DE PLATĂ","DATA SCADENȚEI"]
[{"$nulls":3},"Scadent la primire"]
[]
[null,"CANTITATE","DESCRIERE","PREȚ UNITAR","TOTAL LINIE"]
[{"$nulls":4},{"$f":"IF(SUM(B18)>0,SUM(B18*'Factură de servicii'!$D18),\"\")","v":""}]
[{"$nulls":4},{"$f":"IF(SUM(B19)>0,SUM(B19*'Factură de servicii'!$D19),\"\")","v":""}]
[{"$nulls":4},{"$f":"IF(SUM(B20)>0,SUM(B20*'Factură de servicii'!$D20),\"\")","v":""}]
[{"$nulls":4},{"$f":"IF(SUM(B21)>0,SUM(B21*'Factură de servicii'!$D21),\"\")","v":""}]
[{"$nulls":4},{"$f":"IF(SUM(B22)>0,SUM(B22*'Factură de servicii'!$D22),\"\")","v":""}]
[{"$nulls":4},{"$f":"IF(SUM(B23)>0,SUM(B23*'Factură de servicii'!$D23),\"\")","v":""}]
[{"$nulls":4},{"$f":"IF(SUM(B24)>0,SUM(B24*'Factură de servicii'!$D24),\"\")","v":""}]
[{"$nulls":4},{"$f":"IF(SUM(B25)>0,SUM(B25*'Factură de servicii'!$D25),\"\")","v":""}]
[{"$nulls":4},{"$f":"IF(SUM(B26)>0,SUM(B26*'Factură de servicii'!$D26),\"\")","v":""}]
[{"$nulls":4},{"$f":"IF(SUM(B27)>0,SUM(B27*'Factură de servicii'!$D27),\"\")","v":""}]
[{"$nulls":4},{"$f":"IF(SUM(B28)>0,SUM(B28*'Factură de servicii'!$D28),\"\")","v":""}]
[{"$nulls":4},{"$f":"IF(SUM(B29)>0,SUM(B29*'Factură de servicii'!$D29),\"\")","v":""}]
[{"$nulls":4},{"$f":"IF(SUM(B30)>0,SUM(B30*'Factură de servicii'!$D30),\"\")","v":""}]
[{"$nulls":4},{"$f":"IF(SUM(B31)>0,SUM(B31*'Factură de servicii'!$D31),\"\")","v":""}]
[{"$nulls":4},{"$f":"IF(SUM(B32)>0,SUM(B32*'Factură de servicii'!$D32),\"\")","v":""}]
[{"$nulls":4},{"$f":"IF(SUM(B33)>0,SUM(B33*'Factură de servicii'!$D33),\"\")","v":""}]
[{"$nulls":4},{"$f":"IF(SUM(B34)>0,SUM(B34*'Factură de servicii'!$D34),\"\")","v":""}]
[{"$nulls":4},{"$f":"IF(SUM(B35)>0,SUM(B35*'Factură de servicii'!$D35),\"\")","v":""}]
[{"$nulls":4},{"$f":"IF(SUM(B36)>0,SUM(B36*'Factură de servicii'!$D36),\"\")","v":""}]
[{"$nulls":4},{"$f":"IF(SUM(B37)>0,SUM(B37*'Factură de servicii'!$D37),\"\")","v":""}]
[{"$nulls":3},"SUBTOTAL",{"$f":"IF(SUM(E18:E37)>0,SUM(E18:E37),\"\")","v":""}]
[{"$nulls":3},"TVA"]
[{"$nulls":3},"TOTAL",{"$f":"IF(SUM(E38)>0,SUM((E38*E39)+E38),\"\")","v":""}]
[]
[null,"Se efectuează toate plățile către",null,{"$f":"B3","v":"Numele firmei dvs."}]
[]
[null,"VĂ MULȚUMIM PENTRU COLABORARE!"]